Workbook

Sheet BẮT ĐẦU
B1: GIỚI THIỆU VỀ MẪU NÀY
B2: Theo dõi khoản đầu tư ban đầu vào website, lợi nhuận, cùng các chi phí khi sử dụng công cụ lập ngân sách website này.
B3: Nhập các chi tiết vào các bảng để tự động tính toán tổng và số liệu đánh giá.
B4: Lưu ý:
B5: Hướng dẫn bổ sung đã được cung cấp ở cột A của trang tính CÔNG CỤ NGÂN SÁCH. Văn bản này đã được ẩn một cách chủ ý. Để loại bỏ văn bản, chọn cột A, rồi chọn XÓA. Để bỏ ẩn văn bản, chọn cột A, rồi thay đổi màu phông chữ.
B6: Để tìm hiểu thêm về các bảng trong trang tính, hãy nhấn SHIFT, rồi F10 trong một bảng, chọn tùy chọn BẢNG, rồi chọn VĂN BẢN THAY THẾ.

Sheet CÔNG CỤ NGÂN SÁCH
B2: Phần cứng Quadrex
B3: CÔNG CỤ LẬP NGÂN SÁCH WEBSITE
B4: 2022-12-01
B6: Dữ liệu công ty | C6: Tỷ lệ
B7: Lợi suất bắt buộc | C7: 10%
B8: Thuế suất | C8: 30%
B10: Khoản đầu tư ban đầu vào website | C10: Năm
B11: Phần cứng (ví dụ: máy chủ) | C11: 25,000.00 ₫
B12: Phần mềm (ví dụ: phần mềm danh mục thương mại điện tử) | C12: 15,000.00 ₫
B13: Phát triển (ví dụ: thiết kế và phát triển site bên thứ ba) | C13: 150,000.00 ₫
B14: Tổng các khoản đầu tư ban đầu | C14: =SUBTOTAL(109,Đầu_tư_ban_đầu[Năm]) -> 190,000.00 ₫
B16: Lợi nhuận từ website | C16: Năm 1 | D16: Năm 2 | E16: Năm 3
B17: Bán hàng trực tiếp | C17: 15,000.00 ₫ | D17: 50,000.00 ₫ | E17: 75,000.00 ₫
B18: Gia tăng doanh thu do tính hiệu quả của quảng bá/nhân viên tăng cao | C18: 25,000.00 ₫ | D18: 25,000.00 ₫ | E18: 25,000.00 ₫
B19: Gia tăng doanh thu do tăng cao hoạt động tham gia đối tác | C19: 25,000.00 ₫ | D19: 25,000.00 ₫ | E19: 25,000.00 ₫
B20: Chi phí di chuyển đã giảm | C20: 25,000.00 ₫ | D20: 25,000.00 ₫ | E20: 25,000.00 ₫
B21: Chi phí dịch vụ khách hàng đã giảm | C21: 50,000.00 ₫ | D21: 50,000.00 ₫ | E21: 50,000.00 ₫
B22: Tổng lợi nhuận | C22: =SUBTOTAL(109,Lợi_ích[Năm 1]) -> 140,000.00 ₫ | D22: =SUBTOTAL(109,Lợi_ích[Năm 2]) -> 175,000.00 ₫ | E22: =SUBTOTAL(109,Lợi_ích[Năm 3]) -> 200,000.00 ₫
B24: Chi phí (Ngoại trừ các khoản đầu tư vốn ban đầu) | C24: NĂM 1 | D24: NĂM 2 | E24: NĂM 3
B25: Chi phí bán hàng | C25: 7,500.00 ₫ | D25: 25,000.00 ₫ | E25: 37,500.00 ₫
B26: Bảo trì | C26: 15,000.00 ₫ | D26: 15,000.00 ₫ | E26: 15,000.00 ₫
B27: Quản lý dự án, hỗ trợ khách hàng | C27: 35,000.00 ₫ | D27: 35,000.00 ₫ | E27: 35,000.00 ₫
B28: Quảng cáo trực tuyến, đăng ký công cụ tìm kiếm | C28: 10,000.00 ₫ | D28: 10,000.00 ₫ | E28: 10,000.00 ₫
B29: Khấu hao chi phí vốn (các tính toán sử dụng giai đoạn ba năm) | C29: =Đầu_tư_ban_đầu[[#Totals],[Năm]]/3 -> 63,333.33 ₫ | D29: =Đầu_tư_ban_đầu[[#Totals],[Năm]]/3 -> 63,333.33 ₫ | E29: =Đầu_tư_ban_đầu[[#Totals],[Năm]]/3 -> 63,333.33 ₫
B30: Tổng chi phí | C30: =SUBTOTAL(109,Chi_phí[NĂM 1]) -> 130,833.33 ₫ | D30: =SUBTOTAL(109,Chi_phí[NĂM 2]) -> 148,333.33 ₫ | E30: =SUBTOTAL(109,Chi_phí[NĂM 3]) -> 160,833.33 ₫
B32: Tổng | D32: Năm 1 | E32: Năm 2 | F32: Năm 3
B33: Lợi nhuận ròng (chi phí) | D33: =Lợi_ích[[#Totals],[Năm 1]]-Chi_phí[[#Totals],[NĂM 1]] -> 9,166.67 ₫ | E33: =Lợi_ích[[#Totals],[Năm 2]]-Chi_phí[[#Totals],[NĂM 2]] -> 26,666.67 ₫ | F33: =Lợi_ích[[#Totals],[Năm 3]]-Chi_phí[[#Totals],[NĂM 3]] -> 39,166.67 ₫
B34: Thuế | D34: =D33*Thuếsuất -> 2,750.00 ₫ | E34: =E33*Thuếsuất -> 8,000.00 ₫ | F34: =F33*Thuếsuất -> 11,750.00 ₫
B35: Giá trị sau thuế | D35: =D33-D34 -> 6,416.67 ₫ | E35: 18,666.67 ₫ | F35: 27,416.67 ₫
B36: Khấu hao đã bù lại | D36: =C29 -> 63,333.33 ₫ | E36: =D29 -> 63,333.33 ₫ | F36: =E29 -> 63,333.33 ₫
B37: Dòng tiền | C37: =-Đầu_tư_ban_đầu[[#Totals],[Năm]] -> -190,000.00 ₫ | D37: =D35+D36 -> 69,750.00 ₫ | E37: 82,000.00 ₫ | F37: 90,750.00 ₫
B38: Dòng tiền tích lũy | C38: =C37 -> -190,000.00 ₫ | D38: =C38+D37 -> -120,250.00 ₫ | E38: -38,250.00 ₫ | F38: 52,500.00 ₫
B40: Số liệu đánh giá | C40: Giá trị
B41: Giá trị hiện tại thuần (NPV) | C41: =C37+(NPV(ROR,D37:F37)) -> 9,359.50 ₫
B42: Tỷ suất thu nhập nội bộ (IRR) | C42: =IRR(C37:F37) -> 12.66%
B43: Thời gian hoàn vốn (tính theo năm) | C43: =IF(F38<=0,"Quá 3 năm",IF(E38<=0,(F37-F38)/F37+2,IF(D38<=0,(E37-E38)/E37+1,IF(C38<=0,(D37-D38)/D37,"NA")))) -> 2.42
